[Event "Titled Tuesday Blitz June 20 Late 2023"]
[White "Vaglio Munoz, Jaime"]
[Black "Golubev, Mikhail"]
[WhiteFideId "6500145"]
[BlackFideId "14100983"]
[WhiteElo "2199"]
[BlackElo "2374"]
[Result "0-1"]
[Round "8"]
[TimeControl "180+2"]
[Date "2023.06.20"]
[WhiteClock "0:00:00"]
[BlackClock "0:01:22"]
[Board "103"]

1. Nf3 {[%clk 0:02:52]}  d6 {[%clk 0:02:57]} 2. b3 {[%clk 0:02:45]}  e5 {[%clk 0:02:55]} 3. d3 {[%clk 0:02:43]}  Nf6 {[%clk 0:02:51]} 4. Bb2 {[%clk 0:02:43]}  Be7 {[%clk 0:02:50]} 5. g3 {[%clk 0:02:43]}  O-O {[%clk 0:02:50]} 6. Bg2 {[%clk 0:02:43]}  Re8 {[%clk 0:02:49]} 7. O-O {[%clk 0:02:42]}  Nc6 {[%clk 0:02:47]} 8. c4 {[%clk 0:02:39]}  Bf5 {[%clk 0:02:36]} 9. Nc3 {[%clk 0:02:35]}  Qd7 {[%clk 0:02:36]} 10. Re1 {[%clk 0:02:28]}  Bh3 {[%clk 0:02:33]} 11. Bh1 {[%clk 0:02:27]}  h6 {[%clk 0:02:33]} 12. a3 {[%clk 0:02:20]}  Rf8 {[%clk 0:02:28]} 13. b4 {[%clk 0:02:18]}  Nd8 {[%clk 0:02:26]} 14. e4 {[%clk 0:01:54]}  Ne6 {[%clk 0:02:23]} 15. d4 {[%clk 0:01:52]}  Bg4 {[%clk 0:02:00]} 16. dxe5 {[%clk 0:01:45]}  Bxf3 {[%clk 0:02:00]} 17. Bxf3 {[%clk 0:01:34]}  dxe5 {[%clk 0:02:00]} 18. Qxd7 {[%clk 0:01:30]}  Nxd7 {[%clk 0:02:01]} 19. Nd5 {[%clk 0:01:31]}  Bd8 {[%clk 0:01:58]} 20. Rad1 {[%clk 0:01:25]}  c6 {[%clk 0:01:49]} 21. Ne3 {[%clk 0:01:23]}  Nf6 {[%clk 0:01:42]} 22. Bxe5 {[%clk 0:01:18]}  Ng5 {[%clk 0:01:40]} 23. Bg2 {[%clk 0:01:06]}  Ngxe4 {[%clk 0:01:39]} 24. Nf5 {[%clk 0:00:54]}  Re8 {[%clk 0:01:38]} 25. Bxe4 {[%clk 0:00:43]}  Rxe5 {[%clk 0:01:36]} 26. Bc2 {[%clk 0:00:31]}  Rxe1+ {[%clk 0:01:33]} 27. Rxe1 {[%clk 0:00:30]}  Kf8 {[%clk 0:01:32]} 28. Nd6 {[%clk 0:00:27]}  Rb8 {[%clk 0:01:31]} 29. c5 {[%clk 0:00:25]}  Bc7 {[%clk 0:01:30]} 30. Nf5 {[%clk 0:00:14]}  Rd8 {[%clk 0:01:29]} 31. Re2 {[%clk 0:00:00]}  g6 {[%clk 0:01:22]} 0-1


[Site "https://www.chess.com"]

[Event "Titled Tuesday Blitz June 20 Late 2023"]
[White "Shuvalov, Evgenij"]
[Black "Ward, Ieuan C"]
[WhiteFideId "4187237"]
[BlackFideId "406627"]
[WhiteElo "2080"]
[BlackElo "2274"]
[Result "1-0"]
[Round "8"]
[TimeControl "180+2"]
[Date "2023.06.20"]
[WhiteClock "0:01:28"]
[BlackClock "0:00:05"]
[Board "105"]

1. b4 {[%clk 0:03:00]}  e5 {[%clk 0:02:58]} 2. Bb2 {[%clk 0:03:00]}  Bxb4 {[%clk 0:02:58]} 3. Bxe5 {[%clk 0:02:59]}  Nf6 {[%clk 0:02:57]} 4. Nc3 {[%clk 0:02:58]}  Nc6 {[%clk 0:02:56]} 5. Bxf6 {[%clk 0:02:58]}  Qxf6 {[%clk 0:02:55]} 6. Nd5 {[%clk 0:02:58]}  Qe5 {[%clk 0:02:45]} 7. c4 {[%clk 0:02:53]}  Ba5 {[%clk 0:02:36]} 8. Nf3 {[%clk 0:02:52]}  Qd6 {[%clk 0:02:30]} 9. e3 {[%clk 0:02:51]}  O-O {[%clk 0:02:26]} 10. Be2 {[%clk 0:02:51]}  Ne7 {[%clk 0:02:18]} 11. Nxe7+ {[%clk 0:02:44]}  Qxe7 {[%clk 0:02:19]} 12. O-O {[%clk 0:02:44]}  d6 {[%clk 0:02:15]} 13. d4 {[%clk 0:02:40]}  Bg4 {[%clk 0:02:09]} 14. Rb1 {[%clk 0:02:37]}  c6 {[%clk 0:02:05]} 15. h3 {[%clk 0:02:34]}  Bxf3 {[%clk 0:02:03]} 16. Bxf3 {[%clk 0:02:34]}  Rab8 {[%clk 0:02:00]} 17. Qa4 {[%clk 0:02:30]}  Bb6 {[%clk 0:01:59]} 18. Rb3 {[%clk 0:02:28]}  f5 {[%clk 0:01:37]} 19. Rc1 {[%clk 0:02:19]}  f4 {[%clk 0:01:32]} 20. c5 {[%clk 0:02:14]}  dxc5 {[%clk 0:01:28]} 21. dxc5 {[%clk 0:02:14]}  Bc7 {[%clk 0:01:14]} 22. Qxa7 {[%clk 0:02:09]}  fxe3 {[%clk 0:01:08]} 23. Rxe3 {[%clk 0:02:04]}  Qg5 {[%clk 0:01:00]} 24. Rce1 {[%clk 0:01:45]}  Qf4 {[%clk 0:00:16]} 25. g3 {[%clk 0:01:43]}  Qf6 {[%clk 0:00:15]} 26. Kg2 {[%clk 0:01:39]}  h6 {[%clk 0:00:14]} 27. Qa4 {[%clk 0:01:37]}  Ra8 {[%clk 0:00:13]} 28. Qb3+ {[%clk 0:01:36]}  Kh8 {[%clk 0:00:13]} 29. Qxb7 {[%clk 0:01:35]}  Ba5 {[%clk 0:00:08]} 30. R1e2 {[%clk 0:01:33]}  Bc3 {[%clk 0:00:08]} 31. Qxc6 {[%clk 0:01:30]}  Bd4 {[%clk 0:00:07]} 32. Qxf6 {[%clk 0:01:29]}  Rxf6 {[%clk 0:00:05]} 33. Bxa8 {[%clk 0:01:28]} 1-0


[Site "https://www.chess.com"]

[Event "Titled Tuesday Blitz June 20 Late 2023"]
[White "Tarnowska, Aleksandra"]
[Black "ArchibaldCerveza29"]
[WhiteFideId "1180967"]
[WhiteElo "1776"]
[BlackElo "2435"]
[Result "0-1"]
[Round "8"]
[TimeControl "180+2"]
[Date "2023.06.20"]
[WhiteClock "0:00:00"]
[BlackClock "0:01:29"]
[Board "109"]

1. e4 {[%clk 0:02:45]}  g6 {[%clk 0:02:58]} 2. d4 {[%clk 0:02:44]}  Bg7 {[%clk 0:02:59]} 3. Nc3 {[%clk 0:02:43]}  d6 {[%clk 0:03:00]} 4. Be3 {[%clk 0:02:43]}  Nd7 {[%clk 0:02:59]} 5. Qd2 {[%clk 0:02:44]}  a6 {[%clk 0:02:58]} 6. f4 {[%clk 0:02:40]}  b5 {[%clk 0:02:57]} 7. Nf3 {[%clk 0:02:36]}  Ngf6 {[%clk 0:02:57]} 8. h3 {[%clk 0:02:33]}  b4 {[%clk 0:02:50]} 9. Ne2 {[%clk 0:02:06]}  Nxe4 {[%clk 0:02:50]} 10. Qxb4 {[%clk 0:02:06]}  Rb8 {[%clk 0:02:40]} 11. Qa3 {[%clk 0:02:02]}  c5 {[%clk 0:02:38]} 12. c3 {[%clk 0:01:54]}  O-O {[%clk 0:02:32]} 13. g4 {[%clk 0:01:46]}  Nb6 {[%clk 0:02:25]} 14. Nc1 {[%clk 0:01:25]}  Nd5 {[%clk 0:02:24]} 15. Bd2 {[%clk 0:01:01]}  e5 {[%clk 0:02:09]} 16. fxe5 {[%clk 0:00:55]}  dxe5 {[%clk 0:02:07]} 17. Bd3 {[%clk 0:00:39]}  Nxd2 {[%clk 0:02:00]} 18. Kxd2 {[%clk 0:00:39]}  exd4 {[%clk 0:01:56]} 19. cxd4 {[%clk 0:00:39]}  cxd4 {[%clk 0:01:51]} 20. Ne2 {[%clk 0:00:30]}  Kh8 {[%clk 0:01:40]} 21. Be4 {[%clk 0:00:16]}  f5 {[%clk 0:01:36]} 22. Bxd5 {[%clk 0:00:10]}  Qxd5 {[%clk 0:01:37]} 23. g5 {[%clk 0:00:11]}  d3 {[%clk 0:01:32]} 24. Qxd3 {[%clk 0:00:09]}  Rxb2+ {[%clk 0:01:31]} 25. Ke3 {[%clk 0:00:03]}  Re8+ {[%clk 0:01:31]} 26. Kf4 {[%clk 0:00:02]}  Qxd3 {[%clk 0:01:31]} 27. Rad1 {[%clk 0:00:01]}  Qe4+ {[%clk 0:01:29]} 28. Kg3 {[%clk 0:00:02]}  Rxe2 {[%clk 0:01:29]} 29. Rd4 {[%clk 0:00:00]}  Bxd4 {[%clk 0:01:29]} 0-1


[Site "https://www.chess.com"]

[Event "Titled Tuesday Blitz June 20 Late 2023"]
[White "Srdanovic, Jovana"]
[Black "Sala, Giulia"]
[WhiteFideId "954810"]
[BlackFideId "2840451"]
[WhiteElo "2155"]
[BlackElo "1769"]
[Result "0-1"]
[Round "8"]
[TimeControl "180+2"]
[Date "2023.06.20"]
[WhiteClock "0:00:07"]
[BlackClock "0:01:18"]
[Board "110"]

1. d4 {[%clk 0:02:59]}  e6 {[%clk 0:03:00]} 2. c4 {[%clk 0:02:59]}  Nf6 {[%clk 0:03:00]} 3. Nc3 {[%clk 0:02:58]}  d5 {[%clk 0:02:59]} 4. Bg5 {[%clk 0:02:54]}  Be7 {[%clk 0:02:59]} 5. e3 {[%clk 0:02:54]}  c6 {[%clk 0:02:58]} 6. Nf3 {[%clk 0:02:54]}  h6 {[%clk 0:02:58]} 7. Bh4 {[%clk 0:02:54]}  O-O {[%clk 0:02:57]} 8. Rc1 {[%clk 0:02:53]}  Nbd7 {[%clk 0:02:58]} 9. Qc2 {[%clk 0:02:53]}  a5 {[%clk 0:02:56]} 10. Bd3 {[%clk 0:02:37]}  Re8 {[%clk 0:02:54]} 11. O-O {[%clk 0:02:32]}  Nf8 {[%clk 0:02:54]} 12. Ne5 {[%clk 0:02:29]}  Nh5 {[%clk 0:02:53]} 13. Bxe7 {[%clk 0:02:24]}  Qxe7 {[%clk 0:02:53]} 14. f4 {[%clk 0:02:24]}  Nf6 {[%clk 0:02:48]} 15. c5 {[%clk 0:02:20]}  N6d7 {[%clk 0:02:34]} 16. Rce1 {[%clk 0:02:15]}  f6 {[%clk 0:02:33]} 17. Ng6 {[%clk 0:02:05]}  Nxg6 {[%clk 0:02:34]} 18. Bxg6 {[%clk 0:02:06]}  Rd8 {[%clk 0:02:34]} 19. e4 {[%clk 0:02:05]}  Nf8 {[%clk 0:02:33]} 20. Bh5 {[%clk 0:02:01]}  Qc7 {[%clk 0:02:26]} 21. e5 {[%clk 0:01:59]}  f5 {[%clk 0:02:25]} 22. a3 {[%clk 0:01:57]}  b6 {[%clk 0:02:24]} 23. b4 {[%clk 0:01:57]}  axb4 {[%clk 0:02:24]} 24. axb4 {[%clk 0:01:58]}  bxc5 {[%clk 0:02:23]} 25. bxc5 {[%clk 0:01:58]}  Ba6 {[%clk 0:02:21]} 26. Be2 {[%clk 0:01:49]}  Bxe2 {[%clk 0:02:19]} 27. Nxe2 {[%clk 0:01:49]}  Ra3 {[%clk 0:02:17]} 28. Ra1 {[%clk 0:01:47]}  Rda8 {[%clk 0:02:18]} 29. Rxa3 {[%clk 0:01:46]}  Rxa3 {[%clk 0:02:18]} 30. Rb1 {[%clk 0:01:46]}  Ng6 {[%clk 0:02:11]} 31. g3 {[%clk 0:01:44]}  Qa5 {[%clk 0:02:11]} 32. Kf2 {[%clk 0:01:38]}  Kh7 {[%clk 0:02:10]} 33. h4 {[%clk 0:01:37]}  Ra2 {[%clk 0:02:08]} 34. Rb2 {[%clk 0:01:37]}  Ra4 {[%clk 0:02:06]} 35. h5 {[%clk 0:01:36]}  Ne7 {[%clk 0:02:03]} 36. Qd2 {[%clk 0:01:33]}  Qa8 {[%clk 0:01:59]} 37. Ng1 {[%clk 0:01:33]}  Nc8 {[%clk 0:01:55]} 38. Nf3 {[%clk 0:01:32]}  Na7 {[%clk 0:01:53]} 39. Qc2 {[%clk 0:01:26]}  Nb5 {[%clk 0:01:52]} 40. Qd3 {[%clk 0:01:20]}  Rc4 {[%clk 0:01:48]} 41. g4 {[%clk 0:01:18]}  Rc3 {[%clk 0:01:44]} 42. Qb1 {[%clk 0:01:15]}  Qa3 {[%clk 0:01:43]} 43. Nd2 {[%clk 0:01:06]}  Nxd4 {[%clk 0:01:39]} 44. g5 {[%clk 0:00:59]}  hxg5 {[%clk 0:01:36]} 45. fxg5 {[%clk 0:00:59]}  Rh3 {[%clk 0:01:35]} 46. Nf1 {[%clk 0:00:19]}  Qf3+ {[%clk 0:01:22]} 47. Ke1 {[%clk 0:00:19]}  Rh1 {[%clk 0:01:23]} 48. g6+ {[%clk 0:00:12]}  Kh6 {[%clk 0:01:23]} 49. Qc1+ {[%clk 0:00:12]}  f4 {[%clk 0:01:23]} 50. Rf2 {[%clk 0:00:10]}  Rxf1+ {[%clk 0:01:19]} 51. Kxf1 {[%clk 0:00:07]}  Qh1# {[%clk 0:01:18]} 0-1


[Site "https://www.chess.com"]

[Event "Titled Tuesday Blitz June 20 Late 2023"]
[White "Nunez V, Gustavo Eduardo"]
[Black "Martinez, Ayelen"]
[WhiteFideId "4403690"]
[BlackFideId "118702"]
[WhiteElo "2168"]
[BlackElo "2074"]
[Result "1-0"]
[Round "8"]
[TimeControl "180+2"]
[Date "2023.06.20"]
[WhiteClock "0:00:08"]
[BlackClock "0:00:14"]
[Board "113"]

1. e4 {[%clk 0:02:56]}  c5 {[%clk 0:02:54]} 2. Nc3 {[%clk 0:02:56]}  d6 {[%clk 0:02:54]} 3. g3 {[%clk 0:02:56]}  g6 {[%clk 0:02:54]} 4. Bg2 {[%clk 0:02:54]}  Nc6 {[%clk 0:02:54]} 5. d3 {[%clk 0:02:54]}  Bg7 {[%clk 0:02:54]} 6. Be3 {[%clk 0:02:54]}  e6 {[%clk 0:02:51]} 7. Qd2 {[%clk 0:02:53]}  Nd4 {[%clk 0:02:47]} 8. h4 {[%clk 0:02:49]}  h5 {[%clk 0:02:45]} 9. Nh3 {[%clk 0:02:36]}  Ne7 {[%clk 0:02:35]} 10. f4 {[%clk 0:02:21]}  Nec6 {[%clk 0:02:30]} 11. Ng5 {[%clk 0:02:11]}  b5 {[%clk 0:02:13]} 12. e5 {[%clk 0:02:07]}  d5 {[%clk 0:02:06]} 13. Bxd4 {[%clk 0:02:01]}  Nxd4 {[%clk 0:02:07]} 14. Nf3 {[%clk 0:01:57]}  b4 {[%clk 0:02:05]} 15. Ne2 {[%clk 0:01:50]}  Nf5 {[%clk 0:02:05]} 16. a3 {[%clk 0:01:46]}  Qb6 {[%clk 0:02:00]} 17. axb4 {[%clk 0:01:40]}  cxb4 {[%clk 0:02:01]} 18. d4 {[%clk 0:01:40]}  b3 {[%clk 0:02:00]} 19. c3 {[%clk 0:01:40]}  Ba6 {[%clk 0:01:57]} 20. Kf2 {[%clk 0:01:39]}  Bc4 {[%clk 0:01:50]} 21. Nc1 {[%clk 0:01:36]}  a5 {[%clk 0:01:32]} 22. Nd3 {[%clk 0:01:32]}  O-O {[%clk 0:01:23]} 23. Nc5 {[%clk 0:01:30]}  Rfc8 {[%clk 0:01:15]} 24. Bh3 {[%clk 0:01:27]}  Nh6 {[%clk 0:01:08]} 25. Ng5 {[%clk 0:01:21]}  Rxc5 {[%clk 0:01:04]} 26. dxc5 {[%clk 0:01:20]}  Qxc5+ {[%clk 0:01:05]} 27. Qd4 {[%clk 0:01:18]}  Qxd4+ {[%clk 0:01:04]} 28. cxd4 {[%clk 0:01:19]}  a4 {[%clk 0:01:04]} 29. Bf1 {[%clk 0:01:07]}  Bf8 {[%clk 0:00:58]} 30. Bxc4 {[%clk 0:01:07]}  dxc4 {[%clk 0:00:59]} 31. Rhc1 {[%clk 0:00:56]}  a3 {[%clk 0:00:56]} 32. Rxc4 {[%clk 0:00:56]}  axb2 {[%clk 0:00:42]} 33. Rb1 {[%clk 0:00:55]}  Ra2 {[%clk 0:00:41]} 34. Rc8 {[%clk 0:00:32]}  Nf5 {[%clk 0:00:32]} 35. d5 {[%clk 0:00:21]}  exd5 {[%clk 0:00:20]} 36. e6 {[%clk 0:00:20]}  fxe6 {[%clk 0:00:20]} 37. Nxe6 {[%clk 0:00:20]}  Kf7 {[%clk 0:00:17]} 38. Nxf8 {[%clk 0:00:19]}  Nd6 {[%clk 0:00:17]} 39. Rb8 {[%clk 0:00:17]}  Ne4+ {[%clk 0:00:18]} 40. Ke3 {[%clk 0:00:15]}  Nc3 {[%clk 0:00:18]} 41. Rxb2 {[%clk 0:00:11]}  Rxb2 {[%clk 0:00:19]} 42. Nd7 {[%clk 0:00:11]}  Nd1+ {[%clk 0:00:17]} 43. Kd3 {[%clk 0:00:11]}  Rb1 {[%clk 0:00:18]} 44. Ne5+ {[%clk 0:00:11]}  Ke6 {[%clk 0:00:18]} 45. Rb6+ {[%clk 0:00:11]}  Kf5 {[%clk 0:00:18]} 46. Rxg6 {[%clk 0:00:11]}  Nf2+ {[%clk 0:00:18]} 47. Kc3 {[%clk 0:00:11]}  b2 {[%clk 0:00:17]} 48. Rg5+ {[%clk 0:00:10]}  Ke4 {[%clk 0:00:17]} 49. Kc2 {[%clk 0:00:08]}  Re1 {[%clk 0:00:16]} 50. Kxb2 {[%clk 0:00:08]}  Nd1+ {[%clk 0:00:16]} 51. Kc2 {[%clk 0:00:07]}  Ne3+ {[%clk 0:00:16]} 52. Kc3 {[%clk 0:00:08]}  Rc1+ {[%clk 0:00:16]} 53. Kb4 {[%clk 0:00:08]}  Rb1+ {[%clk 0:00:17]} 54. Kc5 {[%clk 0:00:08]}  Rc1+ {[%clk 0:00:16]} 55. Kd6 {[%clk 0:00:09]}  d4 {[%clk 0:00:17]} 56. Nc6 {[%clk 0:00:09]}  d3 {[%clk 0:00:16]} 57. Re5+ {[%clk 0:00:10]}  Kf3 {[%clk 0:00:17]} 58. Nd4+ {[%clk 0:00:10]}  Kxg3 {[%clk 0:00:17]} 59. Rxe3+ {[%clk 0:00:10]}  Kxf4 {[%clk 0:00:17]} 60. Rxd3 {[%clk 0:00:11]}  Ke4 {[%clk 0:00:17]} 61. Rd2 {[%clk 0:00:10]}  Ke3 {[%clk 0:00:18]} 62. Nb3 {[%clk 0:00:09]}  Rc3 {[%clk 0:00:17]} 63. Rb2 {[%clk 0:00:10]}  Kf4 {[%clk 0:00:17]} 64. Nd4 {[%clk 0:00:09]}  Kg4 {[%clk 0:00:16]} 65. Rh2 {[%clk 0:00:07]}  Rd3 {[%clk 0:00:16]} 66. Ke5 {[%clk 0:00:07]}  Kg3 {[%clk 0:00:17]} 67. Rh1 {[%clk 0:00:07]}  Kg2 {[%clk 0:00:17]} 68. Re1 {[%clk 0:00:06]}  Kg3 {[%clk 0:00:15]} 69. Re4 {[%clk 0:00:07]}  Rd1 {[%clk 0:00:14]} 70. Nf5+ {[%clk 0:00:08]}  Kf3 {[%clk 0:00:14]} 71. Re3+ {[%clk 0:00:08]}  Kg4 {[%clk 0:00:14]} 72. Rg3# {[%clk 0:00:08]} 1-0


[Site "https://www.chess.com"]

[Event "Titled Tuesday Blitz June 20 Late 2023"]
[White "De Souza, Cristiano Gomes"]
[Black "dodoucb"]
[WhiteFideId "2151758"]
[WhiteElo "2068"]
[BlackElo "2392"]
[Result "0-1"]
[Round "8"]
[TimeControl "180+2"]
[Date "2023.06.20"]
[WhiteClock "0:00:20"]
[BlackClock "0:00:07"]
[Board "116"]

1. d4 {[%clk 0:03:00]}  Nf6 {[%clk 0:02:59]} 2. c4 {[%clk 0:03:01]}  g6 {[%clk 0:02:58]} 3. Nc3 {[%clk 0:03:00]}  Bg7 {[%clk 0:02:58]} 4. e4 {[%clk 0:03:00]}  d6 {[%clk 0:02:58]} 5. Nf3 {[%clk 0:03:01]}  O-O {[%clk 0:02:56]} 6. Be2 {[%clk 0:03:01]}  Nc6 {[%clk 0:02:31]} 7. O-O {[%clk 0:03:01]}  e5 {[%clk 0:02:29]} 8. d5 {[%clk 0:03:01]}  Ne7 {[%clk 0:02:28]} 9. Ne1 {[%clk 0:03:02]}  Nd7 {[%clk 0:02:23]} 10. Be3 {[%clk 0:03:02]}  f5 {[%clk 0:02:22]} 11. f3 {[%clk 0:03:02]}  f4 {[%clk 0:02:22]} 12. Bf2 {[%clk 0:03:03]}  g5 {[%clk 0:02:23]} 13. Nb5 {[%clk 0:03:03]}  a6 {[%clk 0:02:22]} 14. Na7 {[%clk 0:03:03]}  Nf6 {[%clk 0:02:16]} 15. Nxc8 {[%clk 0:03:01]}  Qxc8 {[%clk 0:02:16]} 16. Nd3 {[%clk 0:03:02]}  Ng6 {[%clk 0:02:15]} 17. c5 {[%clk 0:03:02]}  h5 {[%clk 0:02:12]} 18. Rc1 {[%clk 0:03:01]}  Qe8 {[%clk 0:02:05]} 19. cxd6 {[%clk 0:03:00]}  cxd6 {[%clk 0:02:05]} 20. Qb3 {[%clk 0:02:58]}  Rf7 {[%clk 0:02:05]} 21. Rc3 {[%clk 0:02:57]}  Bf8 {[%clk 0:02:04]} 22. Rfc1 {[%clk 0:02:56]}  Rd8 {[%clk 0:01:49]} 23. Rc7 {[%clk 0:02:53]}  b5 {[%clk 0:01:37]} 24. Qa3 {[%clk 0:02:50]}  Ra8 {[%clk 0:01:28]} 25. Qc3 {[%clk 0:02:38]}  g4 {[%clk 0:01:24]} 26. Rxf7 {[%clk 0:02:34]}  Qxf7 {[%clk 0:01:22]} 27. Qc7 {[%clk 0:02:28]}  Be7 {[%clk 0:01:05]} 28. Qb7 {[%clk 0:01:45]}  Qe8 {[%clk 0:00:46]} 29. Nb4 {[%clk 0:01:37]}  h4 {[%clk 0:00:39]} 30. Rc7 {[%clk 0:01:22]}  g3 {[%clk 0:00:30]} 31. Bb6 {[%clk 0:01:09]}  Rb8 {[%clk 0:00:23]} 32. Qxa6 {[%clk 0:01:07]}  gxh2+ {[%clk 0:00:12]} 33. Kxh2 {[%clk 0:01:06]}  h3 {[%clk 0:00:12]} 34. Bxb5 {[%clk 0:01:00]}  Qf8 {[%clk 0:00:10]} 35. gxh3 {[%clk 0:00:53]}  Nh4 {[%clk 0:00:09]} 36. Bd7 {[%clk 0:00:42]}  Nxf3+ {[%clk 0:00:07]} 37. Kg2 {[%clk 0:00:42]}  Nh4+ {[%clk 0:00:07]} 38. Kf2 {[%clk 0:00:41]}  Qg7 {[%clk 0:00:07]} 39. Bg4 {[%clk 0:00:40]}  Nxg4+ {[%clk 0:00:07]} 40. hxg4 {[%clk 0:00:40]}  Qxg4 {[%clk 0:00:07]} 41. Nc6 {[%clk 0:00:33]}  Qg2+ {[%clk 0:00:06]} 42. Ke1 {[%clk 0:00:33]}  Nf3+ {[%clk 0:00:06]} 43. Kd1 {[%clk 0:00:20]}  Qd2# {[%clk 0:00:07]} 0-1


[Site "https://www.chess.com"]

[Event "Titled Tuesday Blitz June 20 Late 2023"]
[White "Fernandez, Maria Florencia"]
[Black "Barrionuevo, Pablo"]
[WhiteFideId "116459"]
[BlackFideId "110566"]
[WhiteElo "2074"]
[BlackElo "2212"]
[Result "1-0"]
[Round "8"]
[TimeControl "180+2"]
[Date "2023.06.20"]
[WhiteClock "0:00:08"]
[BlackClock "0:00:00"]
[Board "117"]

1. d4 {[%clk 0:03:00]}  d5 {[%clk 0:02:58]} 2. c4 {[%clk 0:03:00]}  e6 {[%clk 0:02:59]} 3. Nc3 {[%clk 0:03:00]}  c5 {[%clk 0:02:59]} 4. e3 {[%clk 0:02:59]}  Nf6 {[%clk 0:02:59]} 5. dxc5 {[%clk 0:02:54]}  Bxc5 {[%clk 0:02:58]} 6. cxd5 {[%clk 0:02:55]}  exd5 {[%clk 0:02:57]} 7. Nf3 {[%clk 0:02:55]}  O-O {[%clk 0:02:57]} 8. Be2 {[%clk 0:02:52]}  Nc6 {[%clk 0:02:56]} 9. O-O {[%clk 0:02:51]}  a6 {[%clk 0:02:55]} 10. b3 {[%clk 0:02:43]}  Qd6 {[%clk 0:02:51]} 11. Bb2 {[%clk 0:02:37]}  Rd8 {[%clk 0:02:49]} 12. Rc1 {[%clk 0:02:16]}  Ba7 {[%clk 0:02:47]} 13. Na4 {[%clk 0:02:06]}  Bg4 {[%clk 0:02:45]} 14. Nd4 {[%clk 0:01:46]}  Bb8 {[%clk 0:02:42]} 15. f4 {[%clk 0:01:34]}  Bxe2 {[%clk 0:02:33]} 16. Qxe2 {[%clk 0:01:31]}  Bc7 {[%clk 0:02:20]} 17. Nc5 {[%clk 0:01:25]}  Rab8 {[%clk 0:02:06]} 18. Nf5 {[%clk 0:01:01]}  Qf8 {[%clk 0:01:55]} 19. Bxf6 {[%clk 0:00:56]}  gxf6 {[%clk 0:01:55]} 20. Rf3 {[%clk 0:00:52]}  Kh8 {[%clk 0:01:55]} 21. Rg3 {[%clk 0:00:47]}  Ne7 {[%clk 0:01:53]} 22. Qh5 {[%clk 0:00:38]}  Ng6 {[%clk 0:01:52]} 23. Rh3 {[%clk 0:00:36]}  Qg8 {[%clk 0:01:50]} 24. Nh6 {[%clk 0:00:30]}  Qg7 {[%clk 0:01:50]} 25. Ng4 {[%clk 0:00:30]}  Nf8 {[%clk 0:01:42]} 26. Nxa6 {[%clk 0:00:21]}  Bd6 {[%clk 0:01:32]} 27. Nc5 {[%clk 0:00:19]}  Rbc8 {[%clk 0:01:31]} 28. Nd3 {[%clk 0:00:19]}  Rxc1+ {[%clk 0:01:27]} 29. Nxc1 {[%clk 0:00:20]}  Rc8 {[%clk 0:01:24]} 30. Ne2 {[%clk 0:00:18]}  Rc2 {[%clk 0:01:22]} 31. Nd4 {[%clk 0:00:16]}  Rxa2 {[%clk 0:01:20]} 32. Qf5 {[%clk 0:00:14]}  Qg6 {[%clk 0:01:16]} 33. Qxf6+ {[%clk 0:00:14]}  Qxf6 {[%clk 0:01:13]} 34. Nxf6 {[%clk 0:00:14]}  Bc5 {[%clk 0:01:09]} 35. Rh5 {[%clk 0:00:11]}  Ne6 {[%clk 0:01:01]} 36. Rxd5 {[%clk 0:00:10]}  Bxd4 {[%clk 0:00:57]} 37. exd4 {[%clk 0:00:11]}  Kg7 {[%clk 0:00:57]} 38. Ne8+ {[%clk 0:00:08]}  Kf8 {[%clk 0:00:00]} 39. Nd6 {[%clk 0:00:08]} 1-0


[Site "https://www.chess.com"]

[Event "Titled Tuesday Blitz June 20 Late 2023"]
[White "disciplinedbrat"]
[Black "Melikhov, Evgeny V."]
[BlackFideId "4122046"]
[WhiteElo "2245"]
[BlackElo "2158"]
[Result "0-1"]
[Round "8"]
[TimeControl "180+2"]
[Date "2023.06.20"]
[WhiteClock "0:00:08"]
[BlackClock "0:00:16"]
[Board "118"]

1. d3 {[%clk 0:03:00]}  d5 {[%clk 0:02:59]} 2. g3 {[%clk 0:03:00]}  c5 {[%clk 0:02:58]} 3. Bg2 {[%clk 0:03:01]}  Nc6 {[%clk 0:02:58]} 4. c4 {[%clk 0:02:55]}  d4 {[%clk 0:02:58]} 5. Nf3 {[%clk 0:02:54]}  e5 {[%clk 0:02:58]} 6. O-O {[%clk 0:02:53]}  Bd6 {[%clk 0:02:57]} 7. e3 {[%clk 0:02:54]}  Nf6 {[%clk 0:02:50]} 8. exd4 {[%clk 0:02:54]}  cxd4 {[%clk 0:02:50]} 9. Bg5 {[%clk 0:02:52]}  O-O {[%clk 0:02:47]} 10. Nbd2 {[%clk 0:02:52]}  h6 {[%clk 0:02:42]} 11. Bxf6 {[%clk 0:02:52]}  Qxf6 {[%clk 0:02:42]} 12. Ne4 {[%clk 0:02:52]}  Qd8 {[%clk 0:02:41]} 13. Nxd6 {[%clk 0:02:51]}  Qxd6 {[%clk 0:02:41]} 14. Re1 {[%clk 0:02:46]}  Re8 {[%clk 0:02:39]} 15. a3 {[%clk 0:02:45]}  a5 {[%clk 0:02:38]} 16. Nd2 {[%clk 0:02:44]}  Bf5 {[%clk 0:02:12]} 17. Ne4 {[%clk 0:02:28]}  Bxe4 {[%clk 0:02:11]} 18. Bxe4 {[%clk 0:02:28]}  b6 {[%clk 0:01:55]} 19. Qf3 {[%clk 0:02:23]}  Rac8 {[%clk 0:01:53]} 20. Bd5 {[%clk 0:02:17]}  Nd8 {[%clk 0:01:31]} 21. Re2 {[%clk 0:02:07]}  Ne6 {[%clk 0:01:14]} 22. h4 {[%clk 0:02:02]}  Rc7 {[%clk 0:01:02]} 23. b4 {[%clk 0:01:51]}  Rce7 {[%clk 0:00:51]} 24. Rae1 {[%clk 0:01:33]}  Nc7 {[%clk 0:00:51]} 25. Bc6 {[%clk 0:01:31]}  Rf8 {[%clk 0:00:51]} 26. bxa5 {[%clk 0:01:28]}  bxa5 {[%clk 0:00:51]} 27. a4 {[%clk 0:01:21]}  Na6 {[%clk 0:00:51]} 28. Be4 {[%clk 0:01:16]}  Nc5 {[%clk 0:00:50]} 29. Qf5 {[%clk 0:01:14]}  g6 {[%clk 0:00:47]} 30. Qg4 {[%clk 0:01:00]}  f5 {[%clk 0:00:37]} 31. Bd5+ {[%clk 0:00:59]}  Kg7 {[%clk 0:00:35]} 32. Qf3 {[%clk 0:00:50]}  h5 {[%clk 0:00:33]} 33. Qg2 {[%clk 0:00:35]}  Nxd3 {[%clk 0:00:29]} 34. Rb1 {[%clk 0:00:34]}  Nb4 {[%clk 0:00:29]} 35. f4 {[%clk 0:00:29]}  e4 {[%clk 0:00:29]} 36. Qf2 {[%clk 0:00:27]}  d3 {[%clk 0:00:27]} 37. Qd4+ {[%clk 0:00:27]}  Qf6 {[%clk 0:00:27]} 38. Qxf6+ {[%clk 0:00:24]}  Kxf6 {[%clk 0:00:26]} 39. Rd2 {[%clk 0:00:22]}  Rb8 {[%clk 0:00:25]} 40. Rb3 {[%clk 0:00:20]}  Rc7 {[%clk 0:00:23]} 41. Kf2 {[%clk 0:00:19]}  Ke7 {[%clk 0:00:20]} 42. Rdb2 {[%clk 0:00:15]}  Kd6 {[%clk 0:00:20]} 43. Ke3 {[%clk 0:00:15]}  Kc5 {[%clk 0:00:21]} 44. Kd2 {[%clk 0:00:15]}  Rd8 {[%clk 0:00:20]} 45. Kc3 {[%clk 0:00:15]}  Rxd5 {[%clk 0:00:19]} 46. cxd5 {[%clk 0:00:16]}  Nxd5+ {[%clk 0:00:20]} 47. Kd2 {[%clk 0:00:17]}  Kd4 {[%clk 0:00:17]} 48. Kd1 {[%clk 0:00:14]}  Ne3+ {[%clk 0:00:16]} 49. Kd2 {[%clk 0:00:14]}  Nc4+ {[%clk 0:00:16]} 50. Kd1 {[%clk 0:00:13]}  Nxb2+ {[%clk 0:00:16]} 51. Rxb2 {[%clk 0:00:14]}  Ke3 {[%clk 0:00:16]} 52. Rb6 {[%clk 0:00:14]}  Rc3 {[%clk 0:00:16]} 53. Rxg6 {[%clk 0:00:11]}  Ra3 {[%clk 0:00:16]} 54. Rc6 {[%clk 0:00:09]}  Ra1+ {[%clk 0:00:16]} 55. Rc1 {[%clk 0:00:10]}  Rxc1+ {[%clk 0:00:16]} 56. Kxc1 {[%clk 0:00:08]}  Ke2 {[%clk 0:00:16]} 0-1


[Site "https://www.chess.com"]